bitfinex/quotes_BTCUSD_20250730
["timestamp","ask_amount","ask_price","bid_price","bid_amount"]
[1753881397482,0.00848399,117860.0,117840.0,0.4568137]
[1753881397742,0.42161324,117870.0,117850.0,0.05981]
[1753881397977,0.41312968,117870.0,117860.0,0.13432]
[1753881398209,0.41312968,117870.0,117860.0,0.19413]
[1753881398210,0.06464627,117870.0,117860.0,0.19413]
[1753881398443,0.07312961,117870.0,117860.0,0.22683]
[1753881398679,0.07312961,117870.0,117860.0,0.13432]
[1753881398924,0.26825992,117870.0,117850.0,0.0844773]
[1753881399154,0.18990191,117860.0,117830.0,0.38118099]
[1753881399422,0.02545255,117860.0,117840.0,0.2187573]
[1753881399665,0.00848478,117850.0,117840.0,0.2785673]
[1753881399904,0.20364746,117850.0,117840.0,0.13428]
[1753881400134,0.00848478,117850.0,117840.0,0.13428]
[1753881400370,0.24280946,117870.0,117840.0,0.45040929]
[1753881400622,0.24280946,117870.0,117840.0,0.45977385]
[1753881400623,0.00848413,117860.0,117840.0,0.45977385]
[1753881400876,0.07312976,117870.0,117850.0,0.29737966]
[1753881401100,0.07312954,117870.0,117860.0,0.19405]
[1753881401328,0.0985805,117870.0,117860.0,0.13424]
[1753881401821,0.09009644,117870.0,117860.0,0.13424]
[1753881402043,0.09009644,117870.0,117860.0,0.19405]
[1753881402044,0.09009666,117870.0,117860.0,0.19405]
[1753881402259,0.09858051,117870.0,117860.0,0.13424]
[1753881402483,0.27674357,117870.0,117850.0,0.24765005]
[1753881402732,0.2682603,117870.0,117860.0,0.13428]
[1753881402947,0.09009716,117870.0,117860.0,0.1342]
[1753881403169,0.08261339,117870.0,117860.0,0.1342]
[1753881403617,0.08932771,117870.0,117860.0,0.19401]
[1753881403839,0.08932771,117870.0,117860.0,0.54771755]
[1753881404559,0.08932771,117870.0,117860.0,0.99527059]
[1753881404795,0.09524916,117870.0,117860.0,1.35271961]
[1753881405016,0.07946153,117870.0,117860.0,1.35271961]
[1753881405491,0.00904008,117870.0,117860.0,1.40271961]
[1753881405963,1e-08,117870.0,117860.0,1.26851961]
[1753881406201,0.0004,117910.0,117900.0,0.2589797]
[1753881406452,0.00088649,117910.0,117900.0,0.92525004]
[1753881406680,0.00088649,117910.0,117900.0,0.98806004]
[1753881407158,0.00088649,117910.0,117900.0,1.00550906]
[1753881407394,0.00088649,117910.0,117900.0,1.37050906]
[1753881408082,0.02170338,117930.0,117920.0,0.61589563]
[1753881408326,0.02184926,117930.0,117920.0,1.28220597]
[1753881408547,0.02184926,117930.0,117920.0,1.30720597]
[1753881408763,0.00014588,117930.0,117920.0,1.34501597]
[1753881408988,0.00014588,117930.0,117920.0,1.37001597]
[1753881409227,0.03964684,117970.0,117960.0,0.19498067]
[1753881409485,0.03979258,117970.0,117960.0,0.0844773]
[1753881409723,0.04826866,117970.0,117960.0,0.2187173]
[1753881409952,0.03979258,117970.0,117960.0,0.2187173]
[1753881410192,0.03979258,117970.0,117960.0,0.48327629]
[1753881410414,0.03979258,117970.0,117960.0,0.50870776]
[1753881410630,0.03979258,117970.0,117960.0,0.94778386]
[1753881410857,0.03979258,117970.0,117960.0,0.77923473]
[1753881411073,0.03979258,117970.0,117960.0,0.98996073]
[1753881411291,0.03979258,117970.0,117960.0,0.98896073]
[1753881411728,0.01812804,117970.0,117960.0,1.32896073]
[1753881412220,0.01812804,117970.0,117960.0,1.32884073]
[1753881412439,0.01812804,117970.0,117960.0,0.1442873]
[1753881412650,0.01812804,117970.0,117960.0,0.44795629]
[1753881412865,0.01812804,117970.0,117960.0,0.1442873]
[1753881413075,0.01812804,117970.0,117960.0,0.0844773]
[1753881413076,0.55633197,117970.0,117960.0,0.0844773]
[1753881413313,0.02543306,117950.0,117920.0,0.38366647]
[1753881413592,0.02543306,117950.0,117930.0,0.0844773]
[1753881413593,0.00847852,117940.0,117930.0,0.0844773]
[1753881413802,0.04414363,117950.0,117930.0,0.2186773]
[1753881414010,0.04414363,117950.0,117940.0,0.1342]
[1753881414011,0.213707,117950.0,117940.0,0.1342]
[1753881414218,0.2165989,117950.0,117940.0,0.1342]
[1753881414439,0.04703553,117950.0,117940.0,0.1342]
[1753881414658,0.04703553,117950.0,117930.0,0.2784873]
[1753881414930,0.0216019,117950.0,117940.0,0.06192972]
[1753881415138,0.0216019,117950.0,117940.0,0.3953264]
[1753881415360,0.0216019,117950.0,117940.0,0.41864232]
[1753881415576,0.00589106,117950.0,117940.0,0.44874232]
[1753881415801,0.01912804,117970.0,117950.0,0.19499024]
[1753881416028,0.04073888,117970.0,117960.0,0.39878295]
[1753881416243,0.04073888,117970.0,117960.0,0.39686121]
[1753881416461,0.03973888,117970.0,117960.0,0.47662531]
[1753881416676,0.03973646,117970.0,117960.0,0.54448806]
[1753881416885,0.03973646,117970.0,117960.0,0.57468806]
[1753881417339,0.03973646,117970.0,117960.0,0.60528806]
[1753881417790,0.03973646,117970.0,117960.0,0.1442873]
[1753881418017,0.03973646,117970.0,117960.0,0.38822629]
[1753881418018,0.04759435,117970.0,117960.0,0.38822629]
[1753881418230,0.04759435,117970.0,117960.0,0.98154661]
[1753881418467,0.04759435,117970.0,117960.0,0.53399371]
[1753881418685,0.04759435,117970.0,117960.0,0.5424708]
[1753881418953,0.0475976,117970.0,117960.0,0.55094774]
[1753881419159,0.04759732,117970.0,117960.0,0.58374774]
[1753881419805,0.04759732,117970.0,117960.0,1.03130078]
[1753881420044,0.04759732,117970.0,117960.0,0.56679371]
[1753881420312,0.0560734,117970.0,117960.0,0.1423073]
[1753881420545,0.04759732,117970.0,117960.0,0.2187173]
[1753881420808,0.26142148,117970.0,117960.0,0.0844773]
[1753881421066,0.26142148,117970.0,117960.0,0.2187173]
[1753881421318,0.06774013,117970.0,117960.0,0.2187573]
[1753881421596,0.2614214,117970.0,117960.0,0.0844773]
[1753881421811,0.2614214,117970.0,117950.0,0.16984]
[1753881421812,0.03390856,117960.0,117950.0,0.16984]
[1753881422056,0.21131638,117960.0,117950.0,0.0844773]
[1753881422304,0.01695727,117940.0,117930.0,0.13424]
[1753881422546,0.21325399,117940.0,117930.0,0.2187173]
[1753881422761,0.19439399,117940.0,117930.0,0.2187173]
[1753881423007,0.02481595,117940.0,117930.0,0.2187173]
[1753881423227,0.20287258,117940.0,117930.0,0.2187173]
[1753881423449,0.01695705,117940.0,117930.0,0.2187173]
[1753881423670,0.03391396,117940.0,117930.0,0.2187173]
[1753881423879,0.20349228,117940.0,117930.0,0.2187173]
[1753881424091,0.01695669,117940.0,117930.0,0.2187173]
[1753881424358,0.02543536,117940.0,117930.0,0.2187173]
[1753881424554,0.03392042,117920.0,117910.0,0.06786275]
[1753881424765,0.50959436,117930.0,117910.0,0.20206275]
[1753881424982,0.19504661,117920.0,117910.0,0.28654005]
[1753881425199,0.18656679,117920.0,117910.0,0.20206275]
[1753881425918,0.18656679,117920.0,117910.0,0.20220863]
[1753881425919,0.17808676,117920.0,117910.0,0.20220863]
[1753881426143,0.19694676,117920.0,117910.0,0.20220863]
[1753881426381,0.19694676,117920.0,117910.0,0.00014588]
[1753881426382,1.1186998,117920.0,117910.0,0.00014588]
[1753881426605,1.1814998,117920.0,117910.0,0.00014588]
[1753881426836,0.52975679,117920.0,117910.0,0.00014588]
[1753881427505,0.54542679,117920.0,117910.0,0.00014588]
[1753881427732,0.54742679,117920.0,117910.0,0.00014588]
[1753881427964,6.64388345,117920.0,117910.0,0.00014588]
[1753881428193,6.69360615,117920.0,117910.0,0.00014588]
[1753881428660,0.97418299,117880.0,117870.0,0.06786275]
[1753881428887,0.66094995,117880.0,117870.0,0.06786275]
[1753881429354,0.67980995,117880.0,117870.0,0.06786275]
[1753881429808,1.12736299,117880.0,117870.0,0.06786275]
[1753881430040,1.12750857,117880.0,117870.0,0.06786275]
[1753881430982,0.99318857,117880.0,117870.0,0.06786275]
[1753881431238,0.67995553,117880.0,117870.0,0.06786275]
[1753881431454,0.66428553,117880.0,117870.0,0.06786275]
[1753881431893,0.49983446,117880.0,117870.0,0.06786275]
[1753881432110,0.66101568,117880.0,117870.0,0.06786275]
[1753881432334,0.66101568,117880.0,117850.0,0.12881275]
[1753881432335,0.00848529,117850.0,117840.0,0.1]
[1753881432574,0.01697007,117850.0,117840.0,0.1844773]
[1753881432782,0.01697007,117850.0,117840.0,0.1]
[1753881433052,0.66090211,117860.0,117840.0,0.1]
[1753881433243,0.00848478,117850.0,117840.0,0.15783]
[1753881433477,0.19516246,117850.0,117840.0,0.15783]
[1753881433699,0.63423065,117850.0,117840.0,0.1]
[1753881433939,1.42756795,117850.0,117840.0,0.1]
[1753881434180,6.49306795,117850.0,117840.0,0.1]
[1753881434864,6.49406795,117850.0,117840.0,0.1]
[1753881435097,6.49306795,117850.0,117840.0,0.1]
[1753881435576,6.14606795,117850.0,117840.0,0.1]
[1753881435811,6.28026795,117850.0,117840.0,0.1]
[1753881436966,6.14606795,117850.0,117840.0,0.1]
[1753881437187,6.15934934,117850.0,117840.0,0.1]
[1753881437419,6.29350934,117850.0,117840.0,0.1]
[1753881437684,5.83267491,117850.0,117840.0,0.1]
[1753881437956,6.26455795,117850.0,117840.0,0.1]
[1753881438180,6.28021795,117850.0,117840.0,0.1]
[1753881438392,6.83021795,117850.0,117840.0,0.1]
[1753881438623,6.91469525,117850.0,117840.0,0.1]
[1753881438837,6.83021795,117850.0,117840.0,0.1]
[1753881439577,6.83321795,117850.0,117840.0,0.1]
[1753881440275,6.69905795,117850.0,117840.0,0.1]
[1753881440502,6.63317795,117850.0,117840.0,0.1]
[1753881441022,5.96715491,117850.0,117840.0,0.1]
[1753881441259,6.10127491,117850.0,117840.0,0.1]
[1753881441492,0.95983969,117850.0,117840.0,0.15783]
[1753881441724,0.95983998,117850.0,117840.0,0.16095]
[1753881442201,0.006,117850.0,117840.0,0.16095]
[1753881442441,0.003,117850.0,117840.0,0.33067165]
[1753881442691,0.003,117850.0,117840.0,0.16095]
[1753881442936,0.003,117850.0,117840.0,0.33067165]
[1753881443189,0.00848471,117850.0,117840.0,0.16095]
[1753881443415,0.36545341,117860.0,117840.0,0.16095]
[1753881443696,0.002,117850.0,117840.0,0.23728]
[1753881443945,0.15912733,117870.0,117840.0,0.46848165]
[1753881444172,5.52545032,117870.0,117850.0,0.12569275]
[1753881444408,0.16969285,117860.0,117850.0,0.12881275]
[1753881444663,0.19516253,117850.0,117840.0,0.1]
[1753881444897,6.12189794,117850.0,117840.0,0.1]
[1753881445647,5.2711549,117850.0,117840.0,0.1]
[1753881445885,5.1866776,117850.0,117840.0,0.15783]
[1753881446143,0.18667775,117850.0,117840.0,0.15783]
[1753881446377,0.19261567,117850.0,117840.0,0.15783]
[1753881446596,0.19361567,117850.0,117840.0,0.15783]
[1753881446815,0.19461567,117850.0,117840.0,0.15783]
[1753881447052,0.18613053,117850.0,117840.0,0.15783]
[1753881447307,6.27529937,117850.0,117840.0,0.1]
[1753881447536,6.51353861,117850.0,117840.0,0.1]
[1753881447759,6.49225219,117850.0,117840.0,0.1]
[1753881447997,6.50808972,117850.0,117840.0,0.1]
[1753881448716,1.71856747,117850.0,117840.0,0.1]
[1753881448958,6.71856747,117850.0,117840.0,1e-08]
[1753881449207,6.07672499,117820.0,117810.0,0.0002]
[1753881449434,6.77905457,117820.0,117810.0,0.0002]
[1753881449890,6.78199457,117820.0,117810.0,0.0002]
[1753881450121,6.84758172,117820.0,117810.0,0.0002]
[1753881450351,6.87398783,117820.0,117810.0,0.0002]
[1753881450577,6.89870172,117820.0,117810.0,0.00068649]
[1753881450797,6.41573172,117820.0,117810.0,0.00068649]
[1753881451747,1.60026457,117820.0,117810.0,0.00068649]
[1753881451974,6.85558454,117820.0,117810.0,0.00068649]
[1753881452448,0.9743256,117790.0,117780.0,0.12859275]
[1753881452676,1.11454484,117790.0,117780.0,0.12873896]
[1753881452908,6.11454484,117790.0,117780.0,0.06800896]
[1753881453142,6.21777222,117790.0,117780.0,0.06800896]
[1753881453642,6.21773222,117790.0,117780.0,0.00014621]
[1753881453888,6.30220952,117790.0,117780.0,0.00014621]
[1753881454134,6.38602084,117790.0,117780.0,0.00014621]
[1753881454392,6.30154354,117790.0,117780.0,0.00014621]
[1753881454919,6.30154354,117790.0,117780.0,0.00314621]
[1753881455171,6.33374354,117790.0,117780.0,0.00314621]
[1753881455422,6.33374354,117790.0,117780.0,0.00014621]
[1753881455669,6.31579354,117790.0,117780.0,0.00014621]
[1753881455910,6.24927354,117790.0,117780.0,0.00014621]
[1753881456158,6.45127354,117790.0,117780.0,0.06087621]
[1753881456411,6.45127354,117790.0,117780.0,0.12873896]
[1753881456878,6.45127354,117790.0,117780.0,0.06800896]
[1753881457646,6.0036805,117790.0,117780.0,0.13179896]
[1753881457879,5.79578126,117790.0,117780.0,0.13179896]
[1753881458125,6.2433343,117790.0,117780.0,0.13179896]
[1753881458373,6.2433343,117790.0,117780.0,0.13379896]
[1753881458374,0.8186706,117790.0,117780.0,0.13379896]
[1753881458673,0.80169247,117790.0,117780.0,0.13179896]
[1753881458935,0.17281928,117790.0,117780.0,0.13179896]
[1753881459199,0.3536812,117790.0,117780.0,0.13479896]
[1753881459651,1.21464317,117790.0,117780.0,0.00014621]
[1753881459870,6.21464317,117790.0,117780.0,0.00014621]
[1753881459940,6.36758317,117790.0,117780.0,0.00014621]
[1753881460182,6.56758317,117790.0,117780.0,0.00014621]
[1753881460423,6.66781168,117790.0,117780.0,0.00014621]
[1753881460650,6.75228898,117790.0,117780.0,0.00014621]
[1753881460900,6.30473594,117790.0,117780.0,0.00014621]
[1753881461136,6.73433898,117790.0,117780.0,0.00014621]
[1753881461364,6.73433898,117790.0,117780.0,0.00114621]
[1753881461595,6.44870168,117790.0,117780.0,0.00114621]
[1753881461820,6.58286168,117790.0,117780.0,0.00014621]
[1753881462060,6.13530864,117790.0,117780.0,0.06087621]
[1753881462290,6.13630864,117790.0,117780.0,0.06393621]
[1753881462548,6.13630864,117790.0,117780.0,0.06087621]
[1753881462791,1.58286168,117790.0,117780.0,0.00014621]
[1753881463013,6.58286168,117790.0,117780.0,0.00014621]
[1753881463235,6.59073696,117790.0,117780.0,0.06087621]
[1753881463467,6.59073696,117790.0,117780.0,0.06587621]
[1753881463897,6.59073696,117790.0,117780.0,0.06087621]
[1753881464330,6.58286168,117790.0,117780.0,0.06487621]
[1753881464572,6.58286168,117790.0,117780.0,0.00414621]
[1753881464573,6.5907325,117790.0,117780.0,0.00414621]
[1753881465015,6.13530864,117790.0,117780.0,0.06487621]
[1753881465222,6.58286168,117790.0,117780.0,0.06487621]
[1753881465477,6.58286168,117790.0,117780.0,0.06793621]
[1753881465693,6.58286168,117790.0,117780.0,0.06487621]
[1753881465919,6.58279247,117790.0,117780.0,0.06487621]
[1753881466142,6.58279247,117790.0,117780.0,0.00414621]
[1753881466601,6.59066181,117790.0,117780.0,0.00414621]
[1753881467043,6.59066181,117790.0,117780.0,0.06487621]
[1753881467286,1.57430301,117790.0,117780.0,0.06487621]
[1753881467743,0.92674997,117790.0,117780.0,0.06487621]
[1753881467988,0.92674997,117790.0,117780.0,0.06793621]
[1753881468882,0.92674997,117790.0,117780.0,0.06487621]
[1753881469121,1.57430301,117790.0,117780.0,0.06487621]
[1753881469365,0.49378226,117790.0,117780.0,0.06793621]
[1753881469583,0.7022718,117790.0,117780.0,0.06793621]
[1753881469831,0.37862862,117790.0,117780.0,0.06793621]
[1753881470056,0.02165005,117790.0,117780.0,0.13003621]
[1753881470279,0.02165005,117790.0,117780.0,0.42724098]
[1753881470502,0.01840005,117790.0,117780.0,0.87479402]
[1753881470737,0.01840005,117790.0,117780.0,0.42724098]
[1753881471431,0.01840005,117790.0,117780.0,0.87679402]
[1753881471943,0.01840005,117790.0,117780.0,0.87479402]
[1753881472434,0.01574014,117790.0,117780.0,0.87879402]
[1753881472647,0.01574014,117790.0,117780.0,0.87879416]
[1753881472906,0.21100158,117790.0,117780.0,0.23596253]
[1753881473134,0.04120788,117790.0,117780.0,0.21851351]
[1753881473362,0.0490952,117790.0,117780.0,0.35239351]
[1753881473590,0.01574014,117790.0,117780.0,0.35239351]
[1753881473820,0.01574014,117790.0,117780.0,0.21451351]
[1753881474050,0.01574014,117790.0,117780.0,0.34839351]
[1753881474281,0.01574014,117790.0,117780.0,0.35339351]
[1753881474505,0.04244328,117800.0,117780.0,0.35339351]
[1753881474766,0.04066766,117800.0,117790.0,0.22987]
[1753881474980,0.0497483,117800.0,117790.0,0.22983]
[1753881475451,0.0497483,117800.0,117790.0,0.19453]
[1753881475452,0.04916395,117800.0,117790.0,0.19453]
[1753881475671,0.00848918,117790.0,117780.0,0.08862351]
[1753881475890,0.6343256,117790.0,117780.0,0.13794621]
[1753881476134,0.18677256,117790.0,117780.0,0.13394621]
[1753881476372,0.17828324,117790.0,117780.0,0.19467621]
[1753881476597,0.51828324,117790.0,117780.0,0.19767621]
[1753881477005,0.52619601,117790.0,117780.0,0.06387621]
[1753881477256,0.52619601,117790.0,117780.0,0.19467621]
[1753881477719,0.52619601,117790.0,117780.0,0.19967621]
[1753881478410,0.52619601,117790.0,117780.0,0.19667621]
[1753881478661,0.37338065,117790.0,117780.0,0.19767621]
[1753881478890,0.37338058,117790.0,117780.0,0.19767621]
[1753881479113,0.38187026,117790.0,117780.0,0.19767621]
[1753881479334,0.55166396,117790.0,117780.0,0.19767621]
[1753881479552,0.54317486,117790.0,117780.0,0.19767621]
[1753881479782,0.37338109,117790.0,117780.0,0.19767621]
[1753881480004,0.36546832,117790.0,117780.0,0.19767621]
[1753881480235,0.34,117790.0,117780.0,0.19767621]
[1753881480485,0.34848853,117800.0,117790.0,0.033]
[1753881480735,0.55167424,117800.0,117790.0,0.09524]
[1753881480977,0.00793998,117800.0,117790.0,0.09831]
[1753881481219,0.00793974,117800.0,117790.0,0.28095005]
[1753881481453,0.00793974,117800.0,117790.0,0.49366116]
[1753881481691,0.02491658,117800.0,117790.0,0.19592]
[1753881481913,0.0334051,117800.0,117790.0,0.19592]
[1753881482141,0.0503828,117800.0,117790.0,0.19692]
[1753881482402,0.0334051,117800.0,117790.0,0.19692]
[1753881482643,0.03087951,117800.0,117790.0,0.19708]
[1753881482879,0.01390282,117800.0,117790.0,0.28791839]
[1753881483110,0.03087994,117800.0,117790.0,0.197]
[1753881483354,0.01390282,117800.0,117790.0,0.3698637]
[1753881483586,0.01390282,117800.0,117790.0,0.3465473]
[1753881483810,0.21763621,117800.0,117790.0,0.06324]
[1753881484033,0.01390282,117800.0,117790.0,0.19612]
[1753881484258,0.01390282,117800.0,117790.0,0.19812]
[1753881484485,0.02239113,117800.0,117790.0,0.20112]
[1753881484717,0.9261919,117800.0,117790.0,0.005]
[1753881484961,1.2020295,117800.0,117790.0,0.005]
[1753881485665,0.51828324,117790.0,117780.0,0.13434621]
[1753881485901,1.0904186,117790.0,117780.0,0.00014621]
[1753881486129,1.1935559,117790.0,117780.0,0.00014621]
[1753881486587,1.2190819,117790.0,117780.0,0.00014621]
[1753881486808,0.58504836,117790.0,117780.0,0.00014621]
[1753881487055,0.22505175,117790.0,117780.0,0.06238621]
[1753881487286,0.31248905,117790.0,117780.0,0.00014621]
[1753881487511,0.75057044,117790.0,117780.0,0.00014621]
[1753881488431,0.75057119,117790.0,117780.0,0.00014621]
[1753881488902,0.91923119,117790.0,117780.0,0.00014621]
[1753881489128,0.96901434,117790.0,117780.0,0.00014621]
[1753881489345,5.96901434,117790.0,117780.0,0.00014621]
[1753881489795,5.93751434,117790.0,117780.0,0.00014621]
[1753881490266,6.60005602,117790.0,117780.0,0.00014621]
[1753881490508,6.60005682,117790.0,117780.0,0.00014621]
[1753881490979,6.62558382,117790.0,117780.0,0.00014621]
[1753881491203,6.62658382,117790.0,117780.0,0.00014621]
[1753881492131,6.62758382,117790.0,117780.0,0.00014621]
[1753881492319,6.60929987,117790.0,117780.0,0.00014621]
[1753881492540,6.62758228,117790.0,117780.0,0.00014621]
[1753881492671,6.37639585,117790.0,117780.0,0.00014621]
[1753881492884,6.54618955,117790.0,117780.0,0.00014621]
[1753881493554,7.03296685,117790.0,117780.0,0.00014621]
[1753881493782,7.08408685,117790.0,117780.0,0.00014621]
[1753881494233,6.99960955,117790.0,117780.0,0.00014621]
[1753881494463,1.99960955,117790.0,117780.0,0.00014621]
[1753881494677,6.57132025,117790.0,117780.0,0.00014621]
[1753881494914,6.95559089,117790.0,117780.0,0.00014621]
[1753881496499,7.01879089,117790.0,117780.0,0.00014621]
[1753881496724,7.30326819,117790.0,117780.0,0.00014621]
[1753881497162,7.32826819,117790.0,117780.0,0.00014621]
[1753881497635,7.32826477,117790.0,117780.0,0.00014621]
[1753881499209,6.89076477,117790.0,117780.0,0.00014621]
[1753881499640,6.55076477,117790.0,117780.0,0.00014621]
[1753881499857,6.49942747,117790.0,117780.0,0.00014621]
[1753881500090,6.63324849,117790.0,117780.0,0.00014621]
[1753881500311,6.48153809,117790.0,117780.0,0.00014621]
[1753881500547,5.42556611,117790.0,117780.0,0.13024896]
[1753881500782,5.5665572,117790.0,117780.0,0.13331896]
[1753881501027,5.42422795,117790.0,117780.0,0.13331896]
[1753881501262,5.76422795,117790.0,117780.0,0.13331896]
[1753881501504,6.20979859,117790.0,117780.0,0.13024896]
[1753881501731,5.76322795,117790.0,117780.0,0.13024896]
[1753881501943,6.20979859,117790.0,117780.0,0.06238621]
[1753881502172,6.40979859,117790.0,117780.0,0.06238621]
[1753881502393,6.73815885,117790.0,117780.0,0.00014621]
[1753881502614,6.89733397,117790.0,117780.0,0.00014621]
[1753881502846,6.94459071,117790.0,117780.0,0.00014621]
[1753881503062,6.92232668,117790.0,117780.0,0.00014621]
[1753881503276,6.92132668,117790.0,117780.0,0.00014621]
[1753881504429,6.92232668,117790.0,117780.0,0.00014621]
[1753881504638,7.01762364,117790.0,117780.0,0.00014621]
[1753881504853,6.92827364,117790.0,117780.0,0.00014621]
[1753881505076,6.92927364,117790.0,117780.0,0.00014621]
[1753881505570,6.70120193,117790.0,117780.0,0.00014621]
[1753881505798,6.56740193,117790.0,117780.0,0.00014621]
[1753881506037,6.68293681,117790.0,117780.0,0.00014621]
[1753881506260,6.70846881,117790.0,117780.0,0.00014621]
[1753881506475,6.68763881,117790.0,117780.0,0.00014621]
[1753881506704,6.68762975,117790.0,117780.0,0.00014621]
[1753881506915,6.59666222,117790.0,117780.0,0.00014621]
[1753881507128,6.61906222,117790.0,117780.0,0.00014621]
[1753881507353,6.61806222,117790.0,117780.0,0.00014621]
[1753881507559,1.63632735,117790.0,117780.0,0.00014621]
[1753881507788,6.63732735,117790.0,117780.0,0.00014621]
[1753881508027,6.63632735,117790.0,117780.0,0.00014621]
[1753881508262,6.50350222,117790.0,117780.0,0.00014621]
[1753881508466,6.50154222,117790.0,117780.0,0.00014621]
[1753881508690,6.50254339,117790.0,117780.0,0.00014621]
[1753881508926,6.52654339,117790.0,117780.0,0.00014621]
[1753881509133,6.56197339,117790.0,117780.0,0.00014621]
[1753881509364,6.58537339,117790.0,117780.0,0.00014621]
[1753881509597,1.58537339,117790.0,117780.0,0.00014621]
[1753881509837,6.58537339,117790.0,117780.0,0.00014621]
[1753881510337,6.58123903,117790.0,117780.0,0.00014621]
[1753881510970,6.58124105,117790.0,117780.0,0.00014621]
[1753881511188,6.56297339,117790.0,117780.0,0.00014621]
[1753881511412,6.58124422,117790.0,117780.0,0.00014621]
[1753881511650,6.55624163,117790.0,117780.0,0.00014621]
[1753881511873,6.52081101,117790.0,117780.0,0.00014621]
[1753881512102,6.50254339,117790.0,117780.0,0.06674621]
[1753881512556,6.50254339,117790.0,117780.0,0.00014621]
[1753881513004,6.36890339,117790.0,117780.0,0.00014621]
[1753881513258,0.35468141,117790.0,117780.0,0.13767896]
[1753881513507,0.61020411,117790.0,117780.0,0.13767896]
[1753881513765,0.04933664,117790.0,117780.0,0.36481707]
[1753881514025,0.01828197,117820.0,117810.0,0.16976487]
[1753881514326,0.03483358,117830.0,117820.0,0.23605046]
[1753881514599,0.01828197,117840.0,117830.0,0.16973606]
[1753881514858,0.28960255,117850.0,117840.0,0.0663]
[1753881514859,0.04347972,117850.0,117840.0,0.0663]
[1753881515108,0.00848413,117860.0,117840.0,0.1329]
[1753881515379,0.15743409,117870.0,117850.0,0.1319]
[1753881515615,0.34,117860.0,117850.0,0.0653]
[1753881515849,0.01828197,117860.0,117850.0,0.0653]
[1753881516084,0.15247204,117870.0,117860.0,0.23459285]
[1753881516345,0.44,117870.0,117860.0,0.1315]
[1753881516582,0.66053115,117870.0,117860.0,0.0666]
[1753881516917,0.53516203,117850.0,117840.0,0.16438]
[1753881517154,0.52798922,117850.0,117820.0,0.0365]
[1753881517364,0.01697244,117830.0,117820.0,0.06714621]
[1753881517571,0.01697244,117830.0,117820.0,0.20106621]
[1753881517814,0.55828197,117850.0,117820.0,0.3078163]
[1753881518081,0.76136402,117850.0,117830.0,0.1306]
[1753881518324,0.00848557,117840.0,117830.0,0.064]
[1753881518785,0.00848557,117840.0,117830.0,0.19788]
[1753881518962,0.01697129,117840.0,117830.0,0.26448]
[1753881519174,0.02545715,117840.0,117830.0,0.26448]
[1753881519393,0.52669344,117840.0,117830.0,0.23214]
[1753881519648,0.51820758,117840.0,117830.0,0.0666]
[1753881519900,0.53968856,117840.0,117830.0,0.0666]
[1753881520350,0.98588079,117840.0,117830.0,0.0666]
[1753881520583,0.98588079,117840.0,117830.0,0.0706]
[1753881520807,0.53968856,117840.0,117830.0,0.0706]
[1753881521934,0.53968856,117840.0,117830.0,0.0746]
[1753881522573,0.35697165,117840.0,117830.0,0.0746]
[1753881522779,0.34,117840.0,117830.0,0.31522286]
[1753881523036,0.5266933,117840.0,117830.0,0.23838]
[1753881523269,0.5299233,117840.0,117830.0,0.0746]
[1753881523720,6.32144283,117840.0,117830.0,0.008]
[1753881523944,0.61965661,117840.0,117830.0,0.0746]
[1753881524157,0.52992374,117840.0,117830.0,0.0746]
[1753881524379,0.52992374,117840.0,117830.0,0.008]
[1753881524615,0.34,117840.0,117830.0,0.2701]
[1753881524837,0.34,117840.0,117830.0,0.3505773]
[1753881525049,0.35697122,117840.0,117830.0,0.3505773]
[1753881525256,0.35697122,117840.0,117830.0,0.3465773]
[1753881525479,0.34,117840.0,117830.0,0.3485773]
[1753881525686,0.34848543,117840.0,117830.0,0.3485773]
[1753881525901,0.37394273,117840.0,117830.0,0.3465773]
[1753881526111,0.37394266,117840.0,117830.0,0.3465773]
[1753881526332,0.37394266,117840.0,117830.0,0.3535773]
[1753881526760,0.34848543,117840.0,117830.0,0.3535773]
[1753881526968,0.37394251,117840.0,117830.0,0.3535773]
[1753881527621,0.34848543,117840.0,117830.0,0.3535773]
[1753881527831,0.38182851,117840.0,117830.0,0.3535773]
[1753881528061,0.3739428,117840.0,117830.0,0.3535773]
[1753881528303,0.37394272,117840.0,117830.0,0.3535773]
[1753881528756,0.3824288,117840.0,117830.0,0.3535773]
[1753881529208,0.54629444,117840.0,117830.0,0.2074]
[1753881529455,0.53780865,117840.0,117830.0,0.2074]
[1753881529661,0.52932272,117840.0,117830.0,0.2074]
[1753881530078,0.52932272,117840.0,117830.0,0.2044]
[1753881530296,0.52932272,117840.0,117830.0,0.2004]
[1753881530728,0.52932272,117840.0,117830.0,0.2034]
[1753881531563,0.52932272,117840.0,117830.0,0.2054]
[1753881531773,0.35637056,117840.0,117830.0,0.2684]
[1753881531981,0.35697129,117840.0,117830.0,0.2684]
[1753881532188,0.36545715,117840.0,117830.0,0.2684]
[1753881532398,0.37334325,117840.0,117830.0,0.2684]
[1753881532603,0.36485739,117840.0,117830.0,0.2684]
[1753881532813,0.00848485,117850.0,117840.0,0.0619]
[1753881533045,0.01637082,117850.0,117840.0,0.1285]
[1753881533229,0.37334016,117850.0,117840.0,0.1285]
[1753881533442,0.53456313,117850.0,117840.0,0.20016]
[1753881533656,0.16972165,117840.0,117830.0,0.005]
[1753881533862,0.88788058,117840.0,117830.0,0.005]
[1753881534096,0.89379537,117840.0,117830.0,0.005]
[1753881534306,0.46337644,117840.0,117830.0,0.002]
[1753881534525,0.46337644,117840.0,117820.0,0.13370621]
[1753881534739,0.34,117830.0,117820.0,0.19630621]
[1753881534960,0.34788917,117830.0,117820.0,0.4675085]
[1753881535174,0.34,117830.0,117820.0,0.99005049]
[1753881535398,0.0084855,117840.0,117820.0,0.98556362]
[1753881535642,0.00848543,117840.0,117830.0,0.1510773]
[1753881535884,0.38183273,117850.0,117830.0,0.2145773]
[1753881536083,0.22930024,117860.0,117840.0,0.2327]
[1753881536299,0.23322782,117860.0,117850.0,0.0666]
[1753881536508,0.063534,117860.0,117850.0,0.0666]
[1753881536947,0.07201864,117860.0,117850.0,0.0666]
[1753881537165,0.06353392,117860.0,117850.0,0.0666]
[1753881537378,0.23322742,117860.0,117850.0,0.0666]
[1753881537589,0.23322742,117860.0,117840.0,0.0325]
[1753881537590,0.17819254,117850.0,117840.0,0.0325]
[1753881537790,0.17819254,117850.0,117840.0,0.13348]
[1753881537791,0.01440929,117850.0,117840.0,0.13348]
[1753881538009,0.18411654,117850.0,117840.0,0.13448]
[1753881538220,0.18732654,117850.0,117840.0,0.13448]
[1753881538667,0.005924,117850.0,117840.0,0.22658]
[1753881538892,0.005924,117850.0,117840.0,0.25838]
[1753881538893,0.00848471,117850.0,117840.0,0.25838]
[1753881539109,0.34,117860.0,117840.0,0.58243888]